Cogmind - Beta 10 @@@ ROGUE MODE // 2020.09.17 @ 16:48:32 // AFD2019/Pay2Buy Player: Sandwich Result: Destroyed by Lightning with EMDS Performance ------------- Evolutions (5) 2500 Regions Visited (11) 2200 Robots Destroyed (124) 620 Value Destroyed (6237) 6237 Prototype IDs (4) 80 Alien Tech Used (0) 0 Bonus (2199) 2199 TOTAL SCORE: 13836 Bonus ------- High Alert Combat Kills 577 Follower Combat Kills 722 Network Hubs Disabled 600 Met Zhirov 300 Cogmind --------- Core Integrity 0/1000 Matter 248/300 Energy 170/170 System Corruption 22% Temperature Cool (0) Movement Core (100) Ox1 Location -5/Hub_04(d) Parts ------- > --- POWER (2) -------- Micro Fission Core > --- PROPULSION (4) --- (None) > --- UTILITY (8) ------ Improved Melee Analysis Suite Advanced Melee Analysis Suite > --- WEAPON (3) ------- (None) > --- INVENTORY (10) --- Armored Treads Armored Treads Improved Gravmag System Shock Rifle Mining Claw Mining Claw Peak State ------------ > --- POWER ------------ Micro Fission Core Micro Fission Core > --- PROPULSION ------- Gravmag Array Gravmag Array > --- UTILITY ---------- Improved Melee Analysis Suite Microactuators Improved Phase Shifter Improved Propulsion Shielding Improved Utility Shielding Layered Medium Armor Plating Improved Thermal Shield Improved Hardlight Generator > --- WEAPON ----------- Vibroblade Plasma Lance Plasma Lance > --- INVENTORY -------- Armored Treads Armored Treads Improved Gravmag System Hardlight Generator Shock Rifle Plasma Rifle Mass Driver Mining Claw Mining Claw [Rating: 96] Favorites ----------- Power Micro Fission Core Power Core Micro Fission Core Propulsion Gravmag Array Treads Improved Treads Hover Unit Gravmag Array Flight Unit Diametric Drive Utility Improved Propulsion Shielding Device Microactuators Processor Improved Melee Analysis Suite Protection Improved Propulsion Shielding Weapon Mining Claw Energy Gun Plasma Rifle Ballistic Cannon Mass Driver Slashing Weapon Mining Claw Piercing Weapon Plasma Lance Build | -11 -10 -9 -8 -8 -7 -6 -5 -5 -5 -5 -5 ------- Run | Scr Mat Mat Mat Sto Fac Fac Fac Ext Cet Arc Hub Slots Evolved 10 | . . 2 2 . 2 2 2 . . . . Power 1 | . . . . . 1 . . . . . . Propulsion 2 | . . . . . . 1 1 . . . . Utility 6 | . . 2 2 . 1 . 1 . . . . Weapon 1 | . . . . . . 1 . . . . . Parts Attached 27 | . . 1 1 . 1 2 1 4 . . 17 Power 3 | . . . . . . . . . . . 3 Engine . | . . . . . . . . . . . . Core 3 | . . . . . . . . . . . 3 Reactor . | . . . . . . . . . . . . Propulsion 6 | . . 1 1 . . . 1 . . . 3 Treads 1 | . . 1 . . . . . . . . . Leg . | . . . . . . . . . . . . Wheel . | . . . . . . . . . . . . Hover 5 | . . . 1 . . . 1 . . . 3 Flight . | . . . . . . . . . . . . Utility 7 | . . . . . . 1 . . . . 6 Device 5 | . . . . . . 1 . . . . 4 Storage . | . . . . . . . . . . . . Processor . | . . . . . . . . . . . . Hackware . | . . . . . . . . . . . . Protection 2 | . . . . . . . . . . . 2 Artifact . | . . . . . . . . . . . . Weapon 11 | . . . . . 1 1 . 4 . . 5 Energy Gun 1 | . . . . . . . . . . . 1 Energy Cannon . | . . . . . . . . . . . . Ballistic Gun . | . . . . . . . . . . . . Ballistic Cannon 2 | . . . . . . . . 1 . . 1 Launcher . | . . . . . . . . . . . . Special Weapon . | . . . . . . . . . . . . Impact Weapon . | . . . . . . . . . . . . Slashing Weapon 3 | . . . . . 1 1 . 1 . . . Piercing Weapon 5 | . . . . . . . . 2 . . 3 Special Melee Weapon . | . . . . . . . . . . . . Unidentified Prototypes . | . . . . . . . . . . . . Parts Lost 41 | . . 6 1 1 . . 2 4 . . 27 Power 7 | . . . 1 1 . . 1 1 . . 3 Propulsion 7 | . . 2 . . . . . . . . 5 Utility 22 | . . 4 . . . . 1 2 . . 15 Weapon 5 | . . . . . . . . 1 . . 4 Highest Loss Streak 14 | . . 3 1 1 . . 1 1 . . 14 Average Slot Usage (%) 82 | . 85 85 76 78 77 84 81 85 88 88 79 Core 10 | . . 11 8 9 15 13 10 10 11 11 10 Treads 7 | . 28 21 9 . . . . . . . . Hover 6 | . . . 4 9 7 13 11 11 11 11 10 Device 12 | . . 1 9 12 15 18 17 17 23 23 21 Processor 4 | . . . . 3 7 6 5 5 5 5 10 Protection 21 | . 28 29 27 27 23 20 23 20 17 17 6 Slashing Weapon 13 | . 28 22 18 18 8 13 11 5 5 5 5 Piercing Weapon 3 | . . . . . . . . 9 11 11 10 Naked Turns . | . . . . . . . . . . . . Heaviest Build 52 | 12 12 27 21 23 29 36 44 52 46 46 46 Greatest Support 62 | 46 46 46 40 28 28 42 56 56 56 56 62 Greatest Overweight (x) 2 | . . . . . 1 . . . . . 2 Average Overweight (x) . | . . . . . . . . . . . . Largest Inventory Capacity 10 | 10 10 10 10 10 10 10 10 10 10 10 10 Average Capacity 10 | 10 10 10 10 10 10 10 10 10 10 10 10 Most Carried 10 | . . . 5 4 7 6 9 9 9 9 10 Average Carried 4 | . . . 1 4 5 5 7 8 9 9 9 Final Capacity 10 | 10 10 10 10 10 10 10 10 10 10 10 10 Final Carried 9 | . . . 4 4 6 6 7 9 9 9 6 Class Distribution -------------------- 65% | Mutant 21% | Gladiator 13% | Commander-Mutant Dominant Class ---------------- Mutant | -10/Materials Mutant | -9/Materials Mutant | -8/Materials Mutant | -8/Storage Gladiator | -7/Factory Gladiator | -6/Factory Gladiator | -5/Factory Commander-Mutant | -5/Extension Commander-Mutant | -5/Cetus Mutant | -5/Archives Mutant | -5/Hub_04(d) Resources | -11 -10 -9 -8 -8 -7 -6 -5 -5 -5 -5 -5 ----------- Run | Scr Mat Mat Mat Sto Fac Fac Fac Ext Cet Arc Hub Matter Collected 459 | . 200 12 17 . 10 20 15 82 21 . 82 Remotely . | . . . . . . . . . . . . Salvage Created 6118 | . 265 678 454 515 73 369 282 1424 107 138 1813 Parts . | . . . . . . . . . . . . Haulers Intercepted 5 | . 1 1 3 . . . . . . . . Recyclers Shooed . | . . . . . . . . . . . . Parts Field Recycled . | . . . . . . . . . . . . Retrieved Matter . | . . . . . . . . . . . . Parts Self-Destructed . | . . . . . . . . . . . . Prevented . | . . . . . . . . . . . . Kills | -11 -10 -9 -8 -8 -7 -6 -5 -5 -5 -5 -5 ------- Run | Scr Mat Mat Mat Sto Fac Fac Fac Ext Cet Arc Hub Combat Hostiles Destroyed 100 | . 9 15 4 7 1 8 4 20 2 2 28 Melee 99 | . 9 15 4 7 1 8 4 20 2 2 27 Classes Destroyed 15 | . 3 4 1 2 . . 1 3 . . 1 Worker 2 | . . . . 1 . . . . . . 1 Builder 3 | . . 2 . 1 . . . . . . . Tunneler 2 | . . . 2 . . . . . . . . Hauler 5 | . 1 1 3 . . . . . . . . Recycler 2 | . . . . 1 . . . . . . 1 Operator 5 | . . 2 1 1 . . . . . . 1 Watcher 5 | . . 1 1 1 . 1 . . . . 1 Swarmer 22 | . 6 4 . . . 4 . . 1 . 7 Grunt 33 | . 3 7 . 3 . 2 2 2 . 2 12 Brawler 1 | . . . . . . . 1 . . . . Protector 1 | . . . . . . . . . . . 1 Sentry 32 | . . 4 4 4 1 2 1 9 . . 7 Hunter 5 | . . . . . . . . 4 . . 1 Behemoth 1 | . . . . . . . . 1 . . . Cetus Guard 1 | . . . . . . . . . 1 . . Thug 3 | . . . . . . . . 3 . . . Butcher 1 | . . . . . . . . 1 . . . Best Kill Streak 6 | . 5 6 3 5 1 5 1 4 1 2 6 Combat Bots Only 6 | . 5 6 1 2 1 5 1 4 1 2 6 Max Kills in Single Turn 1 | . 1 1 1 1 1 1 1 1 1 1 1 Gunslinging . | . . . . . . . . . . . . Exploded . | . . . . . . . . . . . . Melee 1 | . 1 1 1 1 1 1 1 1 1 1 1 Uniques/NPCs Destroyed . | . . . . . . . . . . . . Combat | -11 -10 -9 -8 -8 -7 -6 -5 -5 -5 -5 -5 -------- Run | Scr Mat Mat Mat Sto Fac Fac Fac Ext Cet Arc Hub Damage Taken 6185 | . 291 950 288 273 50 268 288 744 8 6 3019 Core 1533 | . 53 159 100 102 14 63 90 96 8 . 848 Absorbed by Shields 796 | . . 51 48 48 27 160 92 294 4 . 72 Core Remaining (%) 81 | 100 78 60 . 63 98 92 . . . . . Volleys Fired 1 | . . . . . . . . 1 . . . Largest 1 | . . . . . . . . 1 . . . Hottest 57 | . . . . . . . . 57 . . . Shots Fired 1 | . . . . . . . . 1 . . . Gun . | . . . . . . . . . . . . Cannon 1 | . . . . . . . . 1 . . . Launcher . | . . . . . . . . . . . . Special . | . . . . . . . . . . . . Kinetic 1 | . . . . . . . . 1 . . . Thermal . | . . . . . . . . . . . . Explosive . | . . . . . . . . . . . . Electromagnetic . | . . . . . . . . . . . . Robot Hit Streak . | . . . . . . . . . . . . Robot Miss Streak . | . . . . . . . . . . . . Penetration Max . | . . . . . . . . . . . . Secondary Targets . | . . . . . . . . . . . . Shots Hit Robots 337 | . 19 56 22 27 2 28 17 67 5 2 92 Core Hits 148 | . 11 23 11 12 1 10 7 28 2 2 41 Critical Hits 18 | . . . 2 2 . 2 1 5 1 . 5 Critical Kills 7 | . . . 1 1 . . . 4 . . 1 Critical Parts Destroyed 10 | . . . 1 1 . 2 1 1 1 . 3 Melee Attacks 614 | . 39 95 43 63 29 72 57 89 13 2 112 Impact . | . . . . . . . . . . . . Slashing 559 | . 39 95 43 63 29 72 57 67 11 2 81 Piercing 55 | . . . . . . . . 22 2 . 31 Sneak Attacks 32 | . 1 9 7 4 . 2 . 6 . . 3 Combat Hostiles 4 | . . . 1 1 . . . 1 . . 1 Follow-up Attacks 76 | . 4 13 2 4 . 8 4 16 1 . 24 Damage Inflicted 15835 | . 485 1768 857 832 108 1420 721 3877 246 106 5415 Guns . | . . . . . . . . . . . . Cannons . | . . . . . . . . . . . . Explosions 290 | . . . . . . . . . . . 290 Melee 15545 | . 485 1768 857 832 108 1420 721 3877 246 106 5125 Ramming . | . . . . . . . . . . . . Kinetic . | . . . . . . . . . . . . Thermal . | . . . . . . . . . . . . Explosive . | . . . . . . . . . . . . Electromagnetic 290 | . . . . . . . . . . . 290 Impact . | . . . . . . . . . . . . Slashing 13781 | . 485 1768 857 832 108 1420 721 3114 246 106 4124 Piercing 1764 | . . . . . . . . 763 . . 1001 Highest Corruption 19 | . . 7 . . . . 5 5 5 5 19 Average Corruption 5 | . . 6 . . . . 5 5 5 5 6 Corruption Purged . | . . . . . . . . . . . . Effects 87 | . . 15 . . . . 8 21 4 3 36 Message Errors 21 | . . 3 . . . . . 7 1 2 8 Matter Fused 20 | . . 2 . . . . 2 6 1 . 9 Heat Flow Errors 5 | . . 1 . . . . . 2 . 1 1 Energy Discharges 10 | . . 2 . . . . 1 . 1 . 6 Parts Rejected 4 | . . 1 . . . . . . . . 3 Data Loss (minor) 8 | . . 2 . . . . . 1 1 . 4 Data Loss (major) 3 | . . 2 . . . . . 1 . . . Misdirections 1 | . . . . . . . . . . . 1 Targeting Errors 15 | . . 2 . . . . 5 4 . . 4 Overload Shots . | . . . . . . . . . . . . Overflow Damage 856 | . 5 219 56 39 . 140 . 150 . . 247 Projectiles . | . . . . . . . . . . . . Explosions 10 | . . . . 10 . . . . . . . Melee 846 | . 5 219 56 29 . 140 . 150 . . 247 Knockbacks . | . . . . . . . . . . . . Impact . | . . . . . . . . . . . . Kinetic . | . . . . . . . . . . . . Secondary . | . . . . . . . . . . . . Self-Inflicted Damage 241 | . . . . 79 . . . . . . 162 Shots 3 | . . . . 1 . . . . . . 2 Rammed . | . . . . . . . . . . . . Targets Rammed . | . . . . . . . . . . . . Kicked . | . . . . . . . . . . . . Crushed . | . . . . . . . . . . . . Highest Temperature 196 | . . 89 . . . . . 196 . 170 168 Average Temperature 73 | . . 49 . . . . . 77 . 86 65 Received Heat Transfer 1223 | . 66 343 83 70 16 103 116 156 . . 270 Siege Activations . | . . . . . . . . . . . . Robots Corrupted 1 | . . . . . . . . . . . 1 Combat Hostiles 1 | . . . . . . . . . . . 1 Parts Fried . | . . . . . . . . . . . . Impact Corruptions . | . . . . . . . . . . . . Robots Melted . | . . . . . . . . . . . . Combat Hostiles . | . . . . . . . . . . . . Parts Melted . | . . . . . . . . . . . . Heat Transferred . | . . . . . . . . . . . . Parts Sabotaged . | . . . . . . . . . . . . Parts Stolen . | . . . . . . . . . . . . Parts Stripped . | . . . . . . . . . . . . Power Chain Reactions . | . . . . . . . . . . . . Missiles Intercepted . | . . . . . . . . . . . . Alert | -11 -10 -9 -8 -8 -7 -6 -5 -5 -5 -5 -5 ------- Run | Scr Mat Mat Mat Sto Fac Fac Fac Ext Cet Arc Hub Peak Influence 941 | . 325 484 488 275 385 744 544 941 760 266 883 Initial 526 | . . 137 204 167 121 178 364 250 526 264 86 Average 361 | . 156 355 337 186 242 445 414 594 649 261 340 Maximum Alert Level 3 | . 1 2 2 1 1 3 2 3 3 1 3 Low Security (%) 14 | 100 54 7 . 44 25 9 . . . . 12 Level 1 48 | . 45 54 70 55 74 26 44 20 . 100 51 Level 2 31 | . . 38 29 . . 61 55 48 57 . 35 Level 3 5 | . . . . . . 2 . 31 42 . . Level 4 . | . . . . . . . . . . . . Level 5 . | . . . . . . . . . . . . High Security . | . . . . . . . . . . . . Max Security . | . . . . . . . . . . . . Squads Dispatched 18 | . 1 3 2 . 1 2 1 2 . . 6 Investigation 2 | . . . 1 . . . . 1 . . . Extermination 1 | . . . . . . . . . . . 1 Reinforcement 11 | . 1 3 1 . . 1 . 1 . . 4 Assault 3 | . . . . . 1 1 1 . . . . Garrison 1 | . . . . . . . . . . . 1 Intercept . | . . . . . . . . . . . . Construction Impeded . | . . . . . . . . . . . . Haulers Reinforced . | . . . . . . . . . . . . Stealth | -11 -10 -9 -8 -8 -7 -6 -5 -5 -5 -5 -5 --------- Run | Scr Mat Mat Mat Sto Fac Fac Fac Ext Cet Arc Hub Distress Signals 15 | . . 3 . 1 . . . 2 2 . 7 Communications Jammed . | . . . . . . . . . . . . Distress Signals . | . . . . . . . . . . . . Times Spotted 192 | . 11 32 8 13 1 11 4 37 9 8 58 Peak Tracking Total 24 | . 5 6 2 5 1 6 3 7 5 8 24 Tactical Retreats 16 | . 1 7 . 3 . . . 2 . 1 2 Traps | -11 -10 -9 -8 -8 -7 -6 -5 -5 -5 -5 -5 ------- Run | Scr Mat Mat Mat Sto Fac Fac Fac Ext Cet Arc Hub Traps Triggered 11 | . . 4 . . . . . 3 . . 4 Indirectly . | . . . . . . . . . . . . Trap Hack Attempts . | . . . . . . . . . . . . Triggered . | . . . . . . . . . . . . Disarmed . | . . . . . . . . . . . . Reprogrammed . | . . . . . . . . . . . . Reused . | . . . . . . . . . . . . Traps Extracted . | . . . . . . . . . . . . Installed . | . . . . . . . . . . . . Triggered . | . . . . . . . . . . . . Machines | -11 -10 -9 -8 -8 -7 -6 -5 -5 -5 -5 -5 ---------- Run | Scr Mat Mat Mat Sto Fac Fac Fac Ext Cet Arc Hub Machines Disabled 115 | . 4 15 11 15 16 22 12 5 2 . 13 Max in Single Turn 13 | . 1 1 1 1 1 1 1 4 1 . 13 Garrison Access 5 | . . . . . 1 1 1 . . . 2 Network Hub 3 | . . . . . . . . . . . 3 Energy Cycler 1 | . . . . . . . . 1 . . . Machines Sabotaged . | . . . . . . . . . . . . Garrisons Compromised . | . . . . . . . . . . . . Overloaded Fab Kills . | . . . . . . . . . . . . Fab Network Shutdowns . | . . . . . . . . . . . . Hacking | -11 -10 -9 -8 -8 -7 -6 -5 -5 -5 -5 -5 --------- Run | Scr Mat Mat Mat Sto Fac Fac Fac Ext Cet Arc Hub Machines Accessed 45 | . 3 4 2 5 3 3 3 9 1 . 12 Terminals 43 | . 3 4 2 5 3 3 3 9 1 . 10 Fabricators . | . . . . . . . . . . . . Repair Stations . | . . . . . . . . . . . . Recycling Units . | . . . . . . . . . . . . Scanalyzers . | . . . . . . . . . . . . Garrison Access 2 | . . . . . . . . . . . 2 Total Hacks 109 | . 10 14 6 17 7 5 8 18 4 . 20 Successful 59 | . 6 7 2 13 2 2 4 11 1 . 11 Failed 50 | . 4 7 4 4 5 3 4 7 3 . 9 Catastrophic 9 | . 1 2 1 . 1 1 1 1 . . 1 Database Lockouts . | . . . . . . . . . . . . Manual 64 | . 5 13 3 6 3 4 5 11 . . 14 Terminals 106 | . 10 14 6 17 7 5 8 18 4 . 17 Fabricators . | . . . . . . . . . . . . Repair Stations . | . . . . . . . . . . . . Recycling Units . | . . . . . . . . . . . . Scanalyzers . | . . . . . . . . . . . . Garrison Access 3 | . . . . . . . . . . . 3 Terminal Hacks 30 | . 3 3 1 12 . . 3 4 1 . 3 Record 1 | . 1 . . . . . . . . . . Open Door 5 | . . . . 3 . . . 1 1 . . Level Access Points 3 | . 1 1 . 1 . . . . . . . Branch Access Points 1 | . . 1 . . . . . . . . . Emergency Access Points 1 | . . . . 1 . . . . . . . Alert Level 2 | . . . . 1 . . 1 . . . . Unreport Threat 9 | . . . . 3 . . 2 3 . . 1 Dispatch Records 1 | . . . . 1 . . . . . . . Reinforcement Status 1 | . . . . 1 . . . . . . . Recall Reinforcements 2 | . . . 1 . . . . . . . 1 Zone Layout 4 | . 1 1 . 1 . . . . . . 1 Fabricator Hacks . | . . . . . . . . . . . . Repair Station Hacks . | . . . . . . . . . . . . Recycling Unit Hacks . | . . . . . . . . . . . . Scanalyzer . | . . . . . . . . . . . . Garrison Access Hacks 2 | . . . . . . . . . . . 2 Seal Access 2 | . . . . . . . . . . . 2 Unauthorized Hacks 27 | . 3 4 1 1 2 2 1 7 . . 6 Terminals 27 | . 3 4 1 1 2 2 1 7 . . 6 Track 1 | . . . . . . . . . . . 1 Botnet 26 | . 3 4 1 1 2 2 1 7 . . 5 Fabricators . | . . . . . . . . . . . . Repair Stations . | . . . . . . . . . . . . Recycling Units . | . . . . . . . . . . . . Scanalyzers . | . . . . . . . . . . . . Garrison Access . | . . . . . . . . . . . . Data Cores Recovered 1 | . . . . 1 . . . . . . . Used 1 | . . . . 1 . . . . . . . Hacking Detections 35 | . 3 4 2 2 3 3 3 5 1 . 9 Full Trace Events 2 | . . . 1 . . . . 1 . . . Feedback Events . | . . . . . . . . . . . . Feedback Blocked . | . . . . . . . . . . . . Robot Schematics Acquired . | . . . . . . . . . . . . Robots Built . | . . . . . . . . . . . . Matter . | . . . . . . . . . . . . Time . | . . . . . . . . . . . . Total Robot Build Rating . | . . . . . . . . . . . . Part Schematics Acquired . | . . . . . . . . . . . . Parts Built . | . . . . . . . . . . . . Matter . | . . . . . . . . . . . . Time . | . . . . . . . . . . . . Total Part Build Rating . | . . . . . . . . . . . . Parts Repaired . | . . . . . . . . . . . . Time . | . . . . . . . . . . . . Parts Recycled . | . . . . . . . . . . . . Recycled Matter . | . . . . . . . . . . . . Retrieved Matter . | . . . . . . . . . . . . Retrieved Components . | . . . . . . . . . . . . Parts Scanalyzed . | . . . . . . . . . . . . Part Schematics Acquired . | . . . . . . . . . . . . Parts Damaged . | . . . . . . . . . . . . Bothacking | -11 -10 -9 -8 -8 -7 -6 -5 -5 -5 -5 -5 ------------ Run | Scr Mat Mat Mat Sto Fac Fac Fac Ext Cet Arc Hub Used RIF Installer . | . . . . . . . . . . . . Robots Hacked . | . . . . . . . . . . . . Non-combat . | . . . . . . . . . . . . Combat . | . . . . . . . . . . . . Robot Hacks Applied . | . . . . . . . . . . . . Relay Couplers Released 3 | . . . . . . 2 1 . . . . Machine Destruction 3 | . . . . . . 2 1 . . . . Robots Rewired 18 | . . . . . . . . 18 . . . Allies Hacked . | . . . . . . . . . . . . Hacks Repelled . | . . . . . . . . . . . . Allies | -11 -10 -9 -8 -8 -7 -6 -5 -5 -5 -5 -5 -------- Run | Scr Mat Mat Mat Sto Fac Fac Fac Ext Cet Arc Hub Total Allies 23 | . . . . . . . . 23 . . . Largest Group 19 | . . . . . . . . 19 18 3 . Highest-Rated Group 525 | . . . . . . . . 525 500 71 . Highest-Rated Ally 156 | . . . . . . . . 156 37 25 . Total Orders . | . . . . . . . . . . . . Ally Attacks 146 | . . . . . . . . 105 39 2 . Total Damage 3742 | . . . . . . . . 2856 808 78 . Kills 20 | . . . . . . . . 12 8 . . Allies Corrupted . | . . . . . . . . . . . . Allies Melted . | . . . . . . . . . . . . Intel | -11 -10 -9 -8 -8 -7 -6 -5 -5 -5 -5 -5 ------- Run | Scr Mat Mat Mat Sto Fac Fac Fac Ext Cet Arc Hub Robot Analysis Total . | . . . . . . . . . . . . Derelict Logs Recovered . | . . . . . . . . . . . . Drone Launches . | . . . . . . . . . . . . Drone Recoveries . | . . . . . . . . . . . . Exploration | -11 -10 -9 -8 -8 -7 -6 -5 -5 -5 -5 -5 ------------- Run | Scr Mat Mat Mat Sto Fac Fac Fac Ext Cet Arc Hub Turns Passed 5827 | 22 362 1198 509 550 491 490 295 782 147 77 904 Spaces Moved 4036 | 21 152 498 319 349 416 554 247 493 100 105 782 Core 21 | 17 . . . . . . . . . . 4 Treads 785 | 4 152 498 131 . . . . . . . . Legs . | . . . . . . . . . . . . Wheels . | . . . . . . . . . . . . Hover 3178 | . . . 188 349 416 554 247 493 100 105 726 Flight 52 | . . . . . . . . . . . 52 Fastest Speed 30 | 50 160 160 60 60 60 56 56 56 56 56 30 Average Speed 85 | 70 160 165 105 60 98 56 56 56 56 56 71 Slowest Speed 170 | 160 160 170 170 60 110 56 56 56 56 56 150 Overloaded Moves . | . . . . . . . . . . . . Propulsion Burnouts . | . . . . . . . . . . . . Robots Hopped . | . . . . . . . . . . . . Cave-ins Triggered . | . . . . . . . . . . . . Exploration Rate (%) 44 | 3 39 41 40 59 15 21 9 79 61 81 88 Regions Visited 11 Branch Regions 5 Pre-discovered Areas . | . . . . . . . . . . . . Known Exits Taken 3 | . 1 1 . 1 . . . . . . . Unknown Exits Taken 8 | 1 . . 1 . 1 1 1 1 1 1 . Scrap Searched . | . . . . . . . . . . . . Spaces Dug 14 | . . . . 1 . 6 5 1 . . 1 Terrain Destroyed 360 | . . . . 17 . 6 5 8 . . 324 Melee 14 | . . . . 1 . 6 5 1 . . 1 Projectile . | . . . . . . . . . . . . AOE 346 | . . . . 16 . . . 7 . . 323 Terrain Rammed . | . . . . . . . . . . . . Walls Destroyed . | . . . . . . . . . . . . Machines Disabled . | . . . . . . . . . . . . Actions | -11 -10 -9 -8 -8 -7 -6 -5 -5 -5 -5 -5 --------- Run | Scr Mat Mat Mat Sto Fac Fac Fac Ext Cet Arc Hub Total 5611 | 28 202 704 413 588 447 649 335 920 179 120 1026 Wait 862 | 8 18 127 53 187 5 39 42 154 69 14 146 Move 4025 | 20 151 497 318 348 415 553 246 492 99 104 782 Hop . | . . . . . . . . . . . . Pick Up . | . . . . . . . . . . . . Fast Attach 13 | . . 1 . . . . . . . . 12 Attach 8 | . . . 1 . 1 1 1 . . . 4 Detach 5 | . . . 2 . 2 . 1 . . . . Swap 6 | . . . . . . 1 . 4 . . 1 Drop . | . . . . . . . . . . . . Fire 1 | . . . . . . . . 1 . . . Melee 488 | . 33 79 39 53 24 55 45 66 11 2 81 Ram . | . . . . . . . . . . . . Kick . | . . . . . . . . . . . . Crush . | . . . . . . . . . . . . Escape Stasis 37 | . . . . . . . . 37 . . . Rewire 166 | . . . . . . . . 166 . . . Trap . | . . . . . . . . . . . . Miscellaneous . | . . . . . . . . . . . . Route ------- -11/Scrapyard -10/Materials (discovered 3 exits: *Mat x3) -9/Materials (discovered 5 exits: *Mat x3 / Min x2) -8/Materials (discovered 2 exits: *Fac / *Sto) -8/Storage (discovered 2 exits: *Fac / [*Rec]) -7/Factory -6/Factory -5/Factory -5/Extension (discovered 3 exits: [*Fac x2] / *Cet) -5/Cetus -5/Archives (discovered 3 exits: [*Fac] / *Hub x2) -5/Hub_04(d) (discovered 4 exits: [*Fac x4]) History --------- Turn | Location | Event 5 | -11/Scrapyard | Discovered new exit (range 15) 23 | -11/Scrapyard | Entered Materials 309 | -10/Materials | Build established: Mutant 323 | -10/Materials | Discovered new exit (range 16) 351 | -10/Materials | Identified exit to Materials 385 | -10/Materials | Entered another Materials area 385 | -9/Materials | Evolved 2 slots: Utility x2 405 | -9/Materials | Identified exit to Materials 988 | -9/Materials | Lost 3 parts (2n1u) 1352 | -9/Materials | Identified exit to Mines 1583 | -9/Materials | Entered another Materials area 1583 | -8/Materials | Evolved 2 slots: Utility x2 1917 | -8/Materials | Discovered new exit (range 15) 1964 | -8/Materials | Discovered new exit (range 9) 2092 | -8/Materials | Entered Storage 2265 | -8/Storage | Identified exit to Factory 2285 | -8/Storage | Used back door to open Recycling access 2285 | -8/Storage | Discovered new exit (range 3) 2642 | -8/Storage | Entered Factory 2642 | -7/Factory | Evolved 2 slots: Power x1, Utility x1 3035 | -7/Factory | Build established: Gladiator 3121 | -7/Factory | Discovered new exit (range 6) 3133 | -7/Factory | Entered another Factory area 3133 | -6/Factory | Evolved 2 slots: Propulsion x1, Weapon x1 3554 | -6/Factory | Discovered new exit (range 12) 3623 | -6/Factory | Entered another Factory area 3623 | -5/Factory | Evolved 2 slots: Propulsion x1, Utility x1 3885 | -5/Factory | Discovered new exit (range 3) 3918 | -5/Factory | Entered Extension 3981 | -5/Extension | Rescued A7 3998 | -5/Extension | Found Vibroblade 4015 | -5/Extension | Rescued a captive Derelict 4021 | -5/Extension | Rescued a captive Derelict 4119 | -5/Extension | Energy Cycler disabled 4122 | -5/Extension | Rescued a captive Derelict 4123 | -5/Extension | Rescued a captive Derelict 4124 | -5/Extension | Rescued a captive Derelict 4278 | -5/Extension | Spotted B-75 Beast 4294 | -5/Extension | Spotted B-75 Beast 4310 | -5/Extension | Discovered new exit (range 15) 4316 | -5/Extension | Allies destroyed B-75 Beast 4319 | -5/Extension | Destroyed B-75 Beast 4389 | -5/Extension | Build established: Commander-Mutant 4639 | -5/Extension | Discovered new exit (range 10) 4640 | -5/Extension | Discovered new exit (range 6) 4700 | -5/Extension | Entered Cetus 4700 | -5/Cetus | Accompanied by 18 allies 4722 | -5/Cetus | Spotted Cetus Guard 4723 | -5/Cetus | Spotted Cetus Guard 4723 | -5/Cetus | Spotted Cetus Guard 4726 | -5/Cetus | Spotted Cetus Guard 4732 | -5/Cetus | Allies destroyed Cetus Guard 4737 | -5/Cetus | Allies destroyed Cetus Guard 4739 | -5/Cetus | Destroyed Cetus Guard 4786 | -5/Cetus | Discovered new exit (range 16) 4847 | -5/Cetus | Entered Archives 4847 | -5/Archives | Accompanied by 3 allies 4868 | -5/Archives | Met Zhirov 4874 | -5/Archives | Reinforcements dispatched to Archives 4874 | -5/Archives | Discovered new exit (range 15) 4892 | -5/Archives | Discovered new exit (range 16) 4909 | -5/Archives | Discovered new exit (range 13) 4919 | -5/Archives | Reinforcements dispatched to Archives 4921 | -5/Archives | Zhirov warped through subspace 4924 | -5/Archives | Entered Hub_04(d) 5002 | -5/Hub_04(d) | Garrison activated, responded to threat 5053 | -5/Hub_04(d) | Discovered new exit (range 5) 5058 | -5/Hub_04(d) | Lost 5 parts (2n3u) 5154 | -5/Hub_04(d) | Build established: Mutant 5225 | -5/Hub_04(d) | Discovered new exit (range 7) 5385 | -5/Hub_04(d) | Discovered new exit (range 5) 5508 | -5/Hub_04(d) | Discovered new exit (range 7) 5759 | -5/Hub_04(d) | Network Hub disabled 5761 | -5/Hub_04(d) | Core integrity fell below 50% 5790 | -5/Hub_04(d) | Spotted Lightning 5793 | -5/Hub_04(d) | System corruption reached 10% 5795 | -5/Hub_04(d) | Spotted Lightning 5796 | -5/Hub_04(d) | Spotted Lightning 5808 | -5/Hub_04(d) | Spotted Lightning 5810 | -5/Hub_04(d) | Spotted Lightning 5822 | -5/Hub_04(d) | Core integrity fell below 20% 5823 | -5/Hub_04(d) | Spotted Lightning 5823 | -5/Hub_04(d) | Spotted Lightning 5826 | -5/Hub_04(d) | Network Hub disabled 5826 | -5/Hub_04(d) | Network Hub disabled 5828 | -5/Hub_04(d) | Destroyed by Lightning with EMDS Last Messages --------------- 05824_ Penetrated by EMDS Slug. 05824_ Cmb. Gravmag System destroyed. 05826_ System corrupted: Vibroblade targeting data glitched. 05826_ ALERT: Network intrusion management efficiency at 70%. 05826_ Network Hub explodes. 05826_ Terminal disabled. 05826_ Control Node disabled. 05826_ ALERT: Network intrusion management efficiency at 65%. 05826_ Control Node disabled. 05826_ Penetrated by EMDS Slug. 05826_ Gravity Neutralizing Apparatus destroyed. 05826_ Diametric Drive destroyed. 05826_ EMDS Slug penetrates Earth. 05827_ I-47 Archangel system terminally corrupted. 05827_ EMDS Slug penetrates Wall. 05827_ Vibroblade destroyed. 05828_ System corrupted: Matter fused (-6). 05828_ Penetrated by EMDS Slug. 05828_ Plasma Rifle destroyed. 05828_ EMDS Slug penetrates Wall. Map ----- +----------------------------------------------------+ | #########?# #????????# | | ###########+##???????# | | ??????+ | | ??????# ########## #####???? | | ###### # #?# #???????? | | # # # """" #?# ##+######??? | | # " # %# """ #?# ## #??? | | # " # # "" #?# ## "" #??? | | #######+######+## " # # " #?# ## """ # ?? | | #???### #### # # # %%% #?# ## T" / ?? | | ##### # " # ####+##### ## """ #??? | | < + " g% %%% # "" #??? | | ### # ; + #??? | | ##### #?## ## ; ############# # """" #??? | | #######?##??# ## ; h#;;######???# # """" #### | | #?????# ## ; # #???# # """" # | | """" #?????# ## " ; # #???# + """" # | | """" ####### ## ; # #???# # # | | """" + ######; ; #???# # # | | """" ## # ; ; #???# ### #### | | ## ### ## ; ;;;;;;;##???# ###??# | | ## #;;;;;;;;;;;;;;;;;;; ##### #????# | | ## # ; h ; ## #????# | | ######## ; ; h ; #??# #????# " | | #??# ; ; % ; #?##/##+###### %" | | #??#% @ ; #?# # | | #??# ; #?# ###"% | | #### ; ##?# # | | " + # ; ; #?# + | | "" + # ### ; ; ##?# " | | " ###+###???# ; ; #?# # | | ## ????# ; ; #?# # | | ## ??# ;;;;;;;;;;;;; ##?# + | | ## """" #?# #??#############+# | | ## """" #?# #????????????# | | ###### """" #?###################????????????# """ | | ?????# """" #????????????????????????????????# | | ?????#####??#????????????????????????????????# """ | | ?????????????????????????????????????????????# | | ?????????????????????????????????????????????# | | ?????????????????????????????????????????????##### | | ?????????????????????????????????????????????????? | | ?????????????????????????????????????????????????? | | ?????????????????????????????????????????????????? | | ?????????????????????????????????????????????????? | | ?????????????????????????????????????????????????? | | ?????????????????????????????????????????????????? | | ?????????????????????????????????????????????????? | | ?????????????????????????????????????????????????? | | ?????????????????????????????????????????????????? | +----------------------------------------------------+ Best States ------------- Heat Dissipation 40 Energy Generation 31 Energy Capacity 240 Matter Stores 300 Matter Capacity 300 Sight Range 16 Terrain Scan Density 10 Additional Mass Support 12 Armor Coverage 225 Resistance: TH 30 Propulsion Shielding 66 Utility Shielding 66 Weapon Shielding 33 Melee Speed Boost 30 Evasion (%) 64 Melee Accuracy 14 Recoil Reduction 2 Item Schematics ----------------- None Robot Schematics ------------------ None Fabricated ------------ Nothing Alien Tech Used ----------------- None Achievements -------------- None Challenges ------------ None Cogshop Purchases (52) ------------------------ Mining Claw (899) Mining Claw (899) Imp. Treads (874) Med. Armor Plating (699) Weapon Shielding (599) Imp. Treads (874) Imp. Propulsion Shielding (976) Hardlight Generator (659) Nuclear Core (713) Hrd. Medium Armor Plating (1228) Imp. Propulsion Shielding (1371) Arm. Treads (1147) Arm. Treads (1147) Imp. Utility Shielding (1466) Hardlight Generator (549) Plasma Rifle (Loot Box) Shock Rifle (Loot Box) Gravmag Array (Loot Box) Nuclear Core (768) Imp. Melee Analysis Suite (1025) Microactuators (791) Mic. Nuclear Core (760) Mic. Nuclear Core (795) Greatsword (1160) Imp. Gravmag System (1010) Imp. Hardlight Generator (988) Imp. Thermal Shield (1086) Gravmag Array (1162) Lyr. Medium Armor Plating (1242) Imp. Propulsion Shielding (993) Mic. Fission Core (1259) Plasma Lance (2539) Plasma Lance (2539) Vibroblade (2812) Mass Driver (878) Imp. Utility Shielding (980) Mic. Fission Core (1360) Imp. Phase Shifter (1574) Gravity Neutralizing Apparatus (1111) Adv. Melee Analysis Suite (897) Lyr. Light Armor Plating (1234) Cmb. Gravmag System (1346) Cmb. Gravmag System (1346) Hrd. Medium Armor Plating (1342) Imp. Maneuvering Thrusters (1336) Mic. Fission Core (1072) Adv. Thermal Shield (1738) Mic. Fission Core (1172) Hrd. Medium Armor Plating (1620) Adv. Actuator Array (2194) Nanoactuators (2194) Diametric Drive (1561) Game ------ Seed DroneHypercooledPick Manual? 0 Play Time 01:16:31 Cumulative 149.2 hours Start 2020.09.17 @ 15:23:03 End 2020.09.17 @ 16:48:32 Sessions 1 Manual Loads 0 Difficulty Rogue Special Mode AFD2019/Pay2Buy Game No. 201 Rogue 158 Adventurer 3 Explorer 40 Win Type - Total 3 Types 2/1/0/0/0/0/0/0/0 Lore% 51 Gallery% 75 Achievement% 55 Wizard Run 0 Options --------- ASCII 0 Keyboard 0 Movement Numpad Keybinds 0 Fullscreen 2 Font 18/SmallcapsGlow Map View 76x50 Tactical HUD 1 Map Filters NONE Filters NONE Steam 1 RUN: b5aefaae-573d-4756-96d6-de6493d7ad28